Cogmind - Beta 15 @@@ ROGUE MODE // 2025.08.07 @ 02:02:14 Player: shapeshifter Result: Destroyed by E7-KPW(E) with Overtuned Barrage Gun Performance ------------- Evolutions (1) 500 Regions Visited (5) 1000 Robots Destroyed (60) 300 Value Destroyed (1596) 1596 Prototype IDs (13) 260 Alien Tech Used (0) 0 Bonus (269) 269 TOTAL SCORE: 3925 Bonus ------- Registered with UFD 300 Friendly Fire -31 Cogmind --------- Core Integrity 0/400 Matter 264/300 Energy 100/100 System Corruption 1% Temperature Cool (0) Movement Treading (320) Ox2 Location -9/Scraptown Parts ------- > --- POWER (1) -------- (None) > --- PROPULSION (2) --- Improved Treads > --- UTILITY (2) ------ Heat Sink High-capacity Storage Unit > --- WEAPON (4) ------- Improved Medium Laser High-powered Shotgun Datajack > --- INVENTORY (20) --- Improved Treads Improved Treads Improved Treads Improved Treads Experimental Heat Sink Large Storage Unit Improved Terrain Scanner Salvage Targeting Computer Salvage Targeting Computer Improved Propulsion Shielding Improved Weapon Shielding Improved Weapon Shielding Light Armor Plating Force Field EM Shotgun Particle Gun Rocket Launcher Mini Grenade Launcher Junk Cannon (0) Peak State ------------ > --- POWER ------------ Ion Engine > --- PROPULSION ------- Improved Treads Improved Treads > --- UTILITY ---------- Heat Sink High-capacity Storage Unit > --- WEAPON ----------- Improved Medium Laser Datajack Junk Cannon > --- INVENTORY -------- Improved Treads Improved Treads Improved Treads Improved Treads Experimental Heat Sink Large Storage Unit Improved Terrain Scanner Salvage Targeting Computer Salvage Targeting Computer Improved Propulsion Shielding Improved Weapon Shielding Improved Weapon Shielding Light Armor Plating Force Field EM Shotgun Particle Gun High-powered Shotgun High-powered Shotgun Rocket Launcher Mini Grenade Launcher [Rating: 28] Favorites ----------- Power Ion Engine Engine Ion Engine Propulsion Improved Treads Treads Improved Treads Wheel Compact Wheel Flight Unit Improved Flight Unit Utility High-capacity Storage Unit Device Heat Sink Storage High-capacity Storage Unit Hackware Hacking Suite Protection Light Armor Plating Weapon High-powered Shotgun Energy Gun Improved Medium Laser Ballistic Gun High-powered Shotgun Launcher Mini Grenade Launcher Special Weapon Junk Cannon Special Melee Weapon Datajack Build | -11 -10 -9 -9 -9 -9 ------- Run | Yrd Mat Mat Sto Rec Scr Slots Evolved 2 | . . 2 . . . Power . | . . . . . . Propulsion . | . . . . . . Utility . | . . . . . . Weapon 2 | . . 2 . . . Parts Attached 46 | 7 12 19 6 . 2 Power 7 | 1 2 3 1 . . Engine 7 | 1 2 3 1 . . Core . | . . . . . . Reactor . | . . . . . . Propulsion 12 | 2 3 5 2 . . Treads 8 | 2 . 4 2 . . Leg . | . . . . . . Wheel 3 | . 2 1 . . . Hover . | . . . . . . Flight 1 | . 1 . . . . Utility 8 | 2 3 2 1 . . Device 3 | 1 . 1 1 . . Storage 3 | 1 2 . . . . Processor . | . . . . . . Hackware 1 | . 1 . . . . Protection 1 | . . 1 . . . Artifact . | . . . . . . Weapon 19 | 2 4 9 2 . 2 Energy Gun 4 | 1 1 2 . . . Energy Cannon . | . . . . . . Ballistic Gun 12 | 1 3 7 . . 1 Ballistic Cannon . | . . . . . . Launcher 1 | . . . 1 . . Special Weapon 1 | . . . . . 1 Impact Weapon . | . . . . . . Slashing Weapon . | . . . . . . Piercing Weapon . | . . . . . . Special Melee Weapon 1 | . . . 1 . . Unidentified Prototypes 4 | . 1 1 . . 2 Parts Lost 21 | . 1 14 2 . 4 Power 4 | . . 2 1 . 1 Propulsion 5 | . 1 3 . . 1 Utility 4 | . . 3 1 . . Weapon 8 | . . 6 . . 2 Highest Loss Streak 4 | . 1 4 2 . 3 To Critical Strikes . | . . . . . . Average Backups 16 | 3 11 14 19 19 19 Power . | . . . . . . Propulsion 4 | 1 3 4 3 4 4 Utility 7 | . 4 6 9 8 9 Weapon 4 | . 2 3 6 6 6 Tool/Special . | . . . . . . Unused Backups 26 | . 2 1 3 2 18 Power . | . . . . . . Propulsion 7 | . . . 3 . 4 Utility 14 | . 1 1 . 2 10 Weapon 5 | . 1 . . . 4 Tool/Special . | . . . . . . Average Slot Usage (%) 96 | . 98 85 99 100 99 Engine 11 | . 14 10 10 11 10 Treads 19 | . 16 15 22 22 21 Wheel 2 | . 9 4 . . . Device 8 | . 1 6 10 11 11 Storage 11 | . 14 11 11 11 11 Hackware 2 | . 12 2 . . . Energy Gun 9 | . 10 6 11 11 11 Ballistic Gun 22 | . 17 27 22 22 21 Launcher 3 | . . . 10 11 1 Special Melee Weapon 3 | . . . . . 9 Peak Build Rating 28 | 7 12 21 22 22 28 Average Rating 18 | 5 10 14 21 21 21 On Entrance 13 | . 7 11 21 22 22 Naked Turns . | . . . . . . Heaviest Build 58 | 14 49 58 58 56 56 Greatest Support 46 | 40 40 40 46 46 46 Greatest Overweight (x) 3 | . 3 3 1 1 2 Average Overweight (x) . | . . 1 1 1 1 Largest Inventory Capacity 20 | 8 20 20 20 20 20 Average Capacity 18 | 7 14 20 20 20 20 Most Carried 20 | 6 15 19 20 20 20 Average Carried 17 | 3 11 14 19 19 19 Final Capacity 20 | 8 20 20 20 20 20 Final Carried 20 | 5 15 19 20 20 20 Class Distribution -------------------- 61% | Gunner 23% | Mutant 13% | Scavenger-Gunner Dominant Class ---------------- Mutant | -10/Materials Scavenger-Gunner | -9/Materials Gunner | -9/Storage Gunner | -9/Recycling Gunner | -9/Scraptown Resources | -11 -10 -9 -9 -9 -9 ----------- Run | Yrd Mat Mat Sto Rec Scr Matter Collected 1134 | 281 191 387 204 14 57 Remotely . | . . . . . . Salvage Created 2166 | 144 535 1107 308 . 72 Parts 121 | 10 35 51 20 . 5 Haulers Intercepted 1 | . 1 . . . . Recyclers Shooed 6 | 1 . 5 . . . Parts Field Recycled . | . . . . . . Retrieved Matter . | . . . . . . Parts Self-Destructed . | . . . . . . Prevented . | . . . . . . Kills | -11 -10 -9 -9 -9 -9 ------- Run | Yrd Mat Mat Sto Rec Scr Combat Hostiles Destroyed 46 | . 14 20 10 . 2 Guns 43 | . 13 20 8 . 2 AOE 2 | . . . 2 . . Classes Destroyed 11 | 2 5 2 1 . 1 Worker 1 | . . . 1 . . Tunneler 3 | 3 . . . . . Hauler 1 | . 1 . . . . Recycler 4 | 1 . 2 1 . . Operator 1 | . 1 . . . . Watcher 4 | . 2 1 1 . . Swarmer 9 | . 6 . 3 . . Grunt 30 | . 8 15 7 . . Brawler 1 | . . 1 . . . Sentry 4 | . . 4 . . . Guru 2 | . . . . . 2 Best Kill Streak 9 | 2 5 6 9 . 2 Combat Bots Only 8 | . 4 6 8 . 2 Max Kills in Single Turn 2 | 1 1 2 2 . 1 Gunslinging 1 | . . . 1 . . Exploded 1 | . . . 1 . . Melee . | . . . . . . Uniques/NPCs Destroyed . | . . . . . . Combat | -11 -10 -9 -9 -9 -9 -------- Run | Yrd Mat Mat Sto Rec Scr Hostile Shots Fired 331 | . 90 151 37 2 51 Missed 74 | . 16 33 11 1 13 Hits 257 | . 74 118 26 1 38 Melee 1 | . . 1 . . . Projectile 256 | . 74 117 26 1 38 Critical Strikes 3 | . 1 2 . . . Damage Taken 3286 | . 839 1455 330 48 614 Core 620 | . 210 283 41 . 86 Absorbed by Shields . | . . . . . . Core Remaining (%) 58 | 100 16 . . . . Volleys Fired 227 | 11 70 122 18 . 6 Largest 4 | 2 2 4 3 . 3 Hottest 131 | 70 90 131 106 . 106 Shots Fired 433 | 22 135 219 40 . 17 Gun 426 | 22 135 219 33 . 17 Cannon . | . . . . . . Launcher 7 | . . . 7 . . Special . | . . . . . . Kinetic 319 | 11 66 208 22 . 12 Thermal 107 | 11 69 11 11 . 5 Explosive 7 | . . . 7 . . Electromagnetic . | . . . . . . Robot Hit Streak 13 | 4 7 13 4 . 6 Robot Miss Streak 6 | 2 5 4 6 . 3 Penetration Max . | . . . . . . Secondary Targets 10 | . 5 2 3 . . Max Gunslinging Chain 1 | . 1 1 1 . . Shots Hit Robots 291 | 15 80 154 28 . 14 Core Hits 121 | 7 34 54 21 . 5 Critical Kills 2 | . . 2 . . . Critical Parts Destroyed 2 | . . 2 . . . Critical Strikes 10 | 1 3 4 2 . . Burn 6 | 1 3 . 2 . . Destroy 4 | . . 4 . . . Melee Attacks 2 | . . . 1 . 1 Impact . | . . . . . . Slashing . | . . . . . . Piercing . | . . . . . . Sneak Attacks 2 | . . . 1 . 1 Combat Hostiles . | . . . . . . Follow-up Attacks . | . . . . . . Damage Inflicted 3389 | 153 822 1338 844 . 232 Guns 2943 | 153 822 1338 398 . 232 Cannons . | . . . . . . Explosions 446 | . . . 446 . . Melee . | . . . . . . Ramming . | . . . . . . Kinetic 2132 | 52 320 1245 331 . 184 Thermal 811 | 101 502 93 67 . 48 Explosive 446 | . . . 446 . . Electromagnetic . | . . . . . . Impact . | . . . . . . Slashing . | . . . . . . Piercing . | . . . . . . Highest Corruption 1 | . . . . . 1 Average Corruption 1 | . . . . . 1 Corruption Purged . | . . . . . . Corruption Blocked . | . . . . . . Overload Shots . | . . . . . . Overflow Damage . | . . . . . . Projectiles . | . . . . . . Explosions . | . . . . . . Melee . | . . . . . . Knockbacks . | . . . . . . Impact . | . . . . . . Kinetic . | . . . . . . Secondary . | . . . . . . Self-Inflicted Damage 20 | . . . 20 . . Shots 1 | . . . 1 . . Rammed . | . . . . . . Targets Rammed . | . . . . . . Kicked . | . . . . . . Crushed . | . . . . . . Highest Temperature 405 | 90 405 243 228 . 18 Average Temperature 76 | 37 94 60 99 . 8 Received Heat Transfer 1254 | . 417 678 141 18 . Effects 3 | . 2 1 . . . Shutdowns 1 | . 1 . . . . Interference 1 | . . 1 . . . Short Circuit 1 | . 1 . . . . Siege Activations . | . . . . . . Martial Activations . | . . . . . . Shielding Activations . | . . . . . . Robots Disrupted . | . . . . . . Combat Hostiles . | . . . . . . Robots Corrupted . | . . . . . . Combat Hostiles . | . . . . . . Parts Fried . | . . . . . . Impact Corruptions . | . . . . . . Robots Melted 1 | . 1 . . . . Combat Hostiles 1 | . 1 . . . . Parts Melted 5 | . 5 . . . . Heat Transferred 2585 | 370 1596 212 296 . 111 Parts Sabotaged . | . . . . . . Parts Stolen . | . . . . . . Parts Stripped . | . . . . . . Power Chain Reactions . | . . . . . . Alert | -11 -10 -9 -9 -9 -9 ------- Run | Yrd Mat Mat Sto Rec Scr Maximum Alert Level . | . . . . . . Low Security (%) 100 | 100 100 100 100 100 . Level 1 . | . . . . . . Level 2 . | . . . . . . Level 3 . | . . . . . . Level 4 . | . . . . . . Level 5 . | . . . . . . High Security . | . . . . . . Max Security . | . . . . . . Peak Influence 157 | 5 95 117 157 . . Initial 29 | . . 29 . . . Average 34 | 2 29 47 48 . . Influence Increases 1221 | 20 388 497 316 . . Destroy 0b10 Robot/C 880 | . 280 400 200 . . Destroy 0b10 Robot/NC 70 | 20 20 15 15 . . Destroy Leader 180 | . 56 82 42 . . Successful Hack 31 | . 16 . 15 . . Disable Machine 15 | . . . 15 . . Destroy Structure 30 | . 1 . 29 . . Partial Spotted 15 | . 15 . . . . Influence Decreases 1221 | 20 317 568 316 . . Entered New Map 42 | . . 42 . . . Time Decay 1009 | 20 307 386 296 . . Lost Part 170 | . 10 140 20 . . Squads Dispatched 5 | . 1 2 2 . . Investigation 3 | . . 1 2 . . Extermination . | . . . . . . Reinforcement 2 | . 1 1 . . . Assault . | . . . . . . Garrison . | . . . . . . Intercept . | . . . . . . Searches Triggered . | . . . . . . Construction Impeded . | . . . . . . Haulers Reinforced . | . . . . . . Active Scanning Responses . | . . . . . . Cargo Convoy Interrupts . | . . . . . . Stealth | -11 -10 -9 -9 -9 -9 --------- Run | Yrd Mat Mat Sto Rec Scr Distress Signals 6 | . 4 1 1 . . Communications Jammed . | . . . . . . Distress Signals . | . . . . . . Times Spotted 68 | . 23 22 15 2 6 Peak Tracking Total 12 | . 5 6 8 2 12 Tactical Retreats . | . . . . . . Traps | -11 -10 -9 -9 -9 -9 ------- Run | Yrd Mat Mat Sto Rec Scr Traps Triggered 3 | . . 1 2 . . Indirectly . | . . . . . . Trap Hack Attempts . | . . . . . . Triggered . | . . . . . . Disarmed . | . . . . . . Reprogrammed . | . . . . . . Reused . | . . . . . . Traps Extracted . | . . . . . . Installed . | . . . . . . Triggered . | . . . . . . Machines | -11 -10 -9 -9 -9 -9 ---------- Run | Yrd Mat Mat Sto Rec Scr Machines Disabled 3 | . . . 1 . 2 Max in Single Turn 1 | . . . 1 . 1 Machines Repaired . | . . . . . . Machines Dismantled . | . . . . . . Machines Sabotaged . | . . . . . . Overloaded Fab Kills . | . . . . . . Hacking | -11 -10 -9 -9 -9 -9 --------- Run | Yrd Mat Mat Sto Rec Scr Machines Accessed 17 | . 6 2 3 3 3 Terminals 14 | . 6 2 3 3 . Fabricators . | . . . . . . Repair Stations . | . . . . . . Recycling Units . | . . . . . . Scanalyzers . | . . . . . . Garrison Access . | . . . . . . Total Hacks 68 | . 18 3 11 10 26 Successful 40 | . 7 1 3 3 26 Failed 28 | . 11 2 8 7 . Catastrophic 2 | . 1 . 1 . . Database Lockouts . | . . . . . . Manual 26 | . 16 2 3 5 . Terminals 42 | . 18 3 11 10 . Fabricators . | . . . . . . Repair Stations . | . . . . . . Recycling Units . | . . . . . . Scanalyzers . | . . . . . . Garrison Access . | . . . . . . Terminal Hacks 37 | . 4 1 3 3 26 Record 26 | . . . . . 26 Robot Schematic 1 | . . . . 1 . Prototype ID Bank 1 | . 1 . . . . Open Door 1 | . . . 1 . . Branch Access Points 3 | . 1 1 1 . . Emergency Access Points 1 | . . . 1 . . Registered Components 1 | . 1 . . . . Zone Layout 3 | . 1 . . 2 . Fabricator Hacks . | . . . . . . Repair Station Hacks . | . . . . . . Recycling Unit Hacks . | . . . . . . Scanalyzer . | . . . . . . Garrison Access Hacks . | . . . . . . Unauthorized Hacks 3 | . 3 . . . . Terminals 3 | . 3 . . . . Botnet 2 | . 2 . . . . Disrupt 1 | . 1 . . . . Fabricators . | . . . . . . Repair Stations . | . . . . . . Recycling Units . | . . . . . . Scanalyzers . | . . . . . . Garrison Access . | . . . . . . Data Cores Recovered 1 | . 1 . . . . Used . | . . . . . . Hacking Detections 11 | . 4 1 3 3 . Full Trace Events 6 | . 1 . 2 3 . Feedback Events . | . . . . . . Feedback Blocked . | . . . . . . Robot Schematics Acquired 1 | . . . . 1 . Robots Built . | . . . . . . Authchips . | . . . . . . Time . | . . . . . . Total Robot Build Rating . | . . . . . . Part Schematics Acquired . | . . . . . . Parts Built . | . . . . . . Authchips . | . . . . . . Time . | . . . . . . Total Part Build Rating . | . . . . . . Parts Repaired . | . . . . . . Time . | . . . . . . Parts Recycled . | . . . . . . Recycled Matter . | . . . . . . Retrieved Matter . | . . . . . . Retrieved Components . | . . . . . . Parts Scanalyzed . | . . . . . . Part Schematics Acquired . | . . . . . . Parts Damaged . | . . . . . . Bothacking | -11 -10 -9 -9 -9 -9 ------------ Run | Yrd Mat Mat Sto Rec Scr Used RIF Installer . | . . . . . . Robots Hacked 2 | . . . 1 . 1 Non-combat . | . . . . . . Combat 2 | . . . 1 . 1 Robot Hacks Applied 2 | . . . 1 . 1 parse_system 2 | . . . 1 . 1 Relay Couplers Released . | . . . . . . Fabnet Peak Effective % . | . . . . . . Robots Rewired . | . . . . . . Allies Hacked . | . . . . . . Hacks Repelled . | . . . . . . Allies | -11 -10 -9 -9 -9 -9 -------- Run | Yrd Mat Mat Sto Rec Scr Total Allies . | . . . . . . Largest Group . | . . . . . . Highest-Rated Group . | . . . . . . Highest-Rated Ally . | . . . . . . Total Orders . | . . . . . . Ally Attacks . | . . . . . . Total Damage . | . . . . . . Kills . | . . . . . . Allies Corrupted . | . . . . . . Allies Melted 1 | . . . . 1 . Intel | -11 -10 -9 -9 -9 -9 ------- Run | Yrd Mat Mat Sto Rec Scr Active Infowar (turns) 1156 | 19 105 651 381 . . Seismic 1156 | 19 105 651 381 . . Robot Analysis Total . | . . . . . . Derelict Logs Recovered . | . . . . . . Drone Launches . | . . . . . . Drone Recoveries . | . . . . . . Exploration | -11 -10 -9 -9 -9 -9 ------------- Run | Yrd Mat Mat Sto Rec Scr Turns Passed 5941 | 132 1055 1205 903 527 2119 Spaces Moved 2479 | 57 579 417 342 215 869 Core 7 | 7 . . . . . Treads 2048 | 50 288 284 342 215 869 Legs . | . . . . . . Wheels 424 | . 291 133 . . . Hover . | . . . . . . Flight . | . . . . . . Fastest Speed 50 | 50 100 115 240 240 240 Average Speed 208 | 146 137 205 240 240 240 Slowest Speed 320 | 160 160 240 240 240 320 Overloaded Moves . | . . . . . . Propulsion Burnouts . | . . . . . . Robots Hopped . | . . . . . . Potential Cave-ins . | . . . . . . Cave-ins Triggered . | . . . . . . Exploration Rate (%) 48 | 5 76 26 69 47 67 Regions Visited 5 Branch Regions 3 Pre-discovered Areas 1 | . . . . . 1 Known Exits Taken 2 | . . 1 1 . . Unknown Exits Taken 3 | 1 1 . . 1 . Scrap Searched 3 | . . . . . 3 Spaces Dug . | . . . . . . Terrain Destroyed 39 | . . . 39 . . Melee . | . . . . . . Projectile . | . . . . . . AOE 39 | . . . 39 . . Terrain Rammed . | . . . . . . Walls Destroyed . | . . . . . . Machines Disabled . | . . . . . . Actions | -11 -10 -9 -9 -9 -9 --------- Run | Yrd Mat Mat Sto Rec Scr Total 2949 | 86 721 633 394 228 887 Wait 89 | . 25 42 12 10 . Move 2474 | 56 578 416 341 214 869 Hop . | . . . . . . Pick Up 68 | 12 21 26 5 2 2 Fast Attach 3 | . . . 2 . 1 Attach 37 | 7 8 19 . . 3 Detach 1 | . 1 . . . . Swap 15 | . 5 3 5 . 2 Drop 29 | . 13 5 6 2 3 Fire 227 | 11 70 122 18 . 6 Melee 2 | . . . 1 . 1 Ram . | . . . . . . Kick . | . . . . . . Crush . | . . . . . . Escape Stasis 4 | . . . 4 . . Rewire . | . . . . . . Trap . | . . . . . . Miscellaneous . | . . . . . . Route ------- -11/Scrapyard -10/Materials (discovered 5 exits: *Mat x3 / *Min x2) -9/Materials (discovered 3 exits: [*Mat] / Min / *Sto) -9/Storage -9/Recycling -9/Scraptown (discovered 1 exit: [*Fac]) History --------- Turn | Location | Event 33 | -11/Scrapyard | Discovered new exit (range 16) 133 | -11/Scrapyard | Entered Materials 316 | -10/Materials | Build established: Mutant 508 | -10/Materials | Discovered new exit (range 16) 873 | -10/Materials | Discovered new exit (range 14) 902 | -10/Materials | Identified exit to Mines 1073 | -10/Materials | Discovered new exit (range 9) 1081 | -10/Materials | Core integrity fell below 50% 1104 | -10/Materials | Core integrity fell below 20% 1188 | -10/Materials | Entered another Materials area 1188 | -9/Materials | Evolved 2 slots: Weapon x2 1484 | -9/Materials | Discovered new exit (range 6) 1486 | -9/Materials | Build established: Gunner 1523 | -9/Materials | Lost 3 parts (1n1u1w) 1547 | -9/Materials | Core integrity fell below 50% 1573 | -9/Materials | Lost 3 parts (1p2w) 1758 | -9/Materials | Lost 4 parts (1p2n1w) 1983 | -9/Materials | Discovered new exit (range 15) 2148 | -9/Materials | Identified exit to Mines 2148 | -9/Materials | Identified exit to Storage 2163 | -9/Materials | Build established: Scavenger-Gunner 2393 | -9/Materials | Entered Storage 2765 | -9/Storage | Core integrity fell below 20% 2820 | -9/Storage | Destroyed 8 combat bots 2949 | -9/Storage | Build established: Gunner 3079 | -9/Storage | Met 01-MTF 3117 | -9/Storage | Identified exit to Recycling 3296 | -9/Storage | Entered Recycling 3296 | -9/Recycling | Accompanied by 2 allies (01-MTF) 3671 | -9/Recycling | Scanned before Scraplab entrance 3722 | -9/Recycling | Entered Scraplab 3821 | -9/Recycling | Discovered new exit (range 2) 3823 | -9/Recycling | Entered Scraptown 3922 | -9/Scraptown | Learned location of Extension (-4) 4279 | -9/Scraptown | Discovered new exit (range 13) 4406 | -9/Scraptown | Visited Spacefarers 4497 | -9/Scraptown | Visited Bundlers 4557 | -9/Scraptown | Visited SPCMW 4677 | -9/Scraptown | Visited UFD Registry 4679 | -9/Scraptown | Registered with UFD as "Technonade" 4737 | -9/Scraptown | Visited Cyclists 4775 | -9/Scraptown | Entered Cyclist Reading Room 4835 | -9/Scraptown | Visited IN-MT5's Study 4871 | -9/Scraptown | Visited Artisan Demo Area 5059 | -9/Scraptown | Visited Fellowship of the Rings 5752 | -9/Scraptown | Visited Junk Cannon Lab 5806 | -9/Scraptown | Found Prototype Special Weapon 5806 | -9/Scraptown | Identified Junk Cannon 5862 | -9/Scraptown | Visited Scrapoid Research Area 5875 | -9/Scraptown | Attacked by Scraptown defenders 5942 | -9/Scraptown | Destroyed by E7-KPW(E) with Overtuned Barrage Gun Last Messages --------------- 05862_ LOCAL NARROWCAST: Scrapoid Research Area. 05875_ ANNOUNCEMENT: Intruder alert! Defend Scraptown! 05889_ Machine disabled. 05892_ PP-MY8(p) destroyed. 05895_ Acquired 27 matter. 05903_ Machine disabled. 05906_ 3T-SJL(p) destroyed. 05924_ Machine disabled. 05924_ Penetrated by Slug. 05928_ Ion Engine destroyed. 05928_ Slug penetrates Machine. 05931_ E7-KPW(E) heat damages Mak. Microdissipator Network. 05933_ Penetrated by Slug. 05935_ Imp. Treads destroyed. 05937_ Machine disabled. 05938_ Penetrated by Slug. 05938_ Hpw. Shotgun destroyed. 05940_ Penetrated by Slug. Map ----- +----------------------------------------------------+ | ?????????????????????????????????????????????????? | | ?????????????????????????????????????????????????? | | ?????????????????????????????????????????????????? | | ?????????????????????????????????????????????????? | | ?????????????????????????????????????????????????? | | ?????????????????????????????????????????????????? | | ?????????????????????????????????????????????????? | | ?????????????????????????????????????????????????? | | ?????????????????????????????????????????????????? | | ?????????????????????????????????????????????????? | | ##????###########????????????????????????????????? | | "#????# """""#????????????????????????????????? | | "#????# " " " #????????????????????????????????? | | "#????#""" #????????????????????????????????? | | "#????#""" #????????????????????????????????? | | "#????#""" " #????????????????????????????????? | | "#????# " """#???? ???????#???????????????????? | | "#????# """#???? "???" #???????????????????? | | "###"##"" """#?????"###" ????????????????????? | | #" " #?????""""" ?????????????????????? | | #" #?????? ??????????????????????? | | # #?????? ???????????????????????? | | ########### ####??????# #??????#????????????????? | | ###########*########### ##### E##???????????????? | | """""""" !! "" "" """"E "" "#????????????? | | [% ! @ "#????????????? | | "#????????????? | | "#????????????? | | "#????????????? | | E E ???????????? | | " """"""""""""""" """""""""" "##"??????????? | | """""""""""""""""""""""""""" "#????????????? | | ""###### ################"" "#????????????? | | ""#???? ??????????????"" "#????????????? | | ""#???? ?????????????????? "#????????????? | | ""#???"" ""??????????????????? "?????????????? | | ""# ?? ??????????????????????"?????????????? | | ""# "?? ?????????????????????????????????????? | | "" ???????????????????????????????????????? | | "" ????????????????????????????????????????? | | ""# " ????????????????????????????????????????? | | ""#? "?????????????????????????????????????????? | | ""#????????????????????????????????????????????? | | ""#????????????????????????????????????????????? | | ""#????????????????????????????????????????????? | | ""###??????????????????????????????????????????? | | """""??????????????????????????????????????????? | | """""""????????????????????????????????????????? | | ???????????????????????????????????? | | ???????????????????????????????????? | +----------------------------------------------------+ Best States ------------- Heat Dissipation 38 Energy Generation 12 Energy Capacity 265 Matter Stores 300 Matter Capacity 300 Sight Range 16 Terrain Scan Density 10 Armor Coverage 150 Evasion (%) 40 Recoil Reduction 2 Offensive Hacking 10 Item Schematics ----------------- None Robot Schematics ------------------ W-16 Scout | -9/Recycling | Hacked Fabricated ------------ Nothing Repaired ---------- Nothing Alien Tech Used ----------------- None Achievements -------------- None Challenges ------------ None Game ------ Seed SpreadBackupCompanion Manual? 0 Play Time 00:31:06 Cumulative 107.9 hours Start 2025.08.07 @ 01:33:07 End 2025.08.07 @ 02:02:14 Sessions 1 Manual Loads 0 Difficulty Rogue Special Mode None Game No. 192 Rogue 192 Adventurer 0 Explorer 0 Win Type - Total 1 Types 1/0/0/0/0/0/0/0/0/0 Lore% 68 Gallery% 61 Achievement% 43 Wizard Run 0 Options --------- Layout 1 ASCII 0 Keyboard 0 Movement Mouse Keybinds 0 Fullscreen 1 Font 24/Smallcaps Map View 50x35 Zoom Use 0% Tactical HUD 1 Map Filters NONE Filters NONE Steam 1 RUN: 35849f86-d916-4337-aca2-b2ff8ca15b0a